fUST/lending_fUST_20250804
["ID","MTS","AMOUNT","RATE_DAILY","PERIOD"]
[377288930,1754320265027,-537.06,0.00036712,2]
[377288931,1754320265037,-553.6,0.00036712,2]
[377288932,1754320265047,-977.49,0.00036712,2]
[377288933,1754320265058,-460.0,0.00036712,2]
[377288934,1754320265068,-2718.21,0.00036712,2]
[377288935,1754320265079,-460.0,0.00036712,2]
[377288936,1754320265088,-557.34,0.00036712,2]
[377288937,1754320265098,-460.0,0.00036712,2]
[377288938,1754320265108,-1268.05,0.00036712,2]
[377288939,1754320265118,-460.0,0.00036712,2]
[377288940,1754320265128,-816.99,0.00036712,2]
[377288941,1754320265138,-460.0,0.00036712,2]
[377288942,1754320265147,-460.0,0.00036712,2]
[377288943,1754320265159,-326.70407869,0.00036712,2]
[377288944,1754320265168,-644.51,0.00036712,2]
[377288945,1754320265178,-621.34,0.00036712,2]
[377288946,1754320265188,-510.34,0.00036712,2]
[377288947,1754320265198,-480.57,0.00036712,2]
[377288948,1754320265208,-2931.08,0.00036712,2]
[377288949,1754320265220,-757.98,0.00036712,2]
[377288950,1754320265230,-2931.08,0.00036712,2]
[377288951,1754320265240,-460.0,0.00036712,2]
[377288952,1754320265250,-460.0,0.00036712,2]
[377288953,1754320265259,-460.0,0.00036712,2]
[377288954,1754320265269,-858.24,0.00036712,2]
[377288955,1754320265279,-2661.3,0.00036712,2]
[377288956,1754320265289,-460.0,0.00036712,2]
[377288957,1754320265300,-484.17,0.00036712,2]
[377288958,1754320265311,-460.0,0.00036712,2]
[377288959,1754320265320,-5634.25,0.00036712,2]
[377288960,1754320265331,-1218.26,0.00036712,2]
[377288961,1754320265341,-984.94,0.00036712,2]
[377288962,1754320265351,-1569.94,0.00036712,2]
[377288963,1754320265361,-6220.6,0.00036712,2]
[377288964,1754320265371,-1002.56,0.00036712,2]
[377288965,1754320265380,-9007.28,0.00036712,2]
[377288966,1754320265391,-442.25,0.00036797,60]
[377288967,1754320265406,-200.0,0.0003686,120]
[377288968,1754320265416,-442.25,0.00036897,60]
[377288969,1754320265426,-5641.44,0.000369,14]
[377288970,1754320265436,-970.0,0.00036937,2]
[377288971,1754320265446,-2148.0,0.00036937,2]
[377288972,1754320265456,-635.0,0.00036937,2]
[377288973,1754320265466,-408.0,0.00036937,2]
[377288974,1754320265477,-200.0,0.0003697,15]
[377288975,1754320265487,-200.0,0.0003697,15]
[377288976,1754320265497,-200.0,0.0003697,15]
[377288977,1754320265507,-240.0,0.0003697,15]
[377288978,1754320265518,-1742.1074964,0.00036986,2]
[377288979,1754320265528,-154.993004,0.00036986,14]
[377288980,1754320265538,-151.0,0.00036986,14]
[377288981,1754320265549,-151.0,0.00036986,14]
[377288982,1754320265559,-259.809258,0.00036986,14]
[377288983,1754320265569,-259.809258,0.00036986,14]
[377288984,1754320265580,-274.997176,0.00036986,14]
[377288985,1754320265589,-151.0,0.00036986,14]
[377288986,1754320265600,-151.0,0.00036986,14]
[377288987,1754320265610,-155.41148,0.00036986,14]
[377288988,1754320265620,-460.0,0.00036986,2]
[377288989,1754320265630,-700.92,0.00036986,2]
[377288990,1754320265640,-2764.52,0.00036986,2]
[377288991,1754320265650,-686.95,0.00036986,2]
[377288992,1754320265662,-523.56,0.00036986,2]
[377288993,1754320265672,-460.0,0.00036986,2]
[377288994,1754320265682,-460.0,0.00036986,2]
[377288995,1754320265692,-460.0,0.00036986,2]
[377288996,1754320265702,-460.0,0.00036986,2]
[377288997,1754320265711,-586.38,0.00036986,2]
[377288998,1754320265721,-670.38,0.00036986,2]
[377288999,1754320265731,-483.92,0.00036986,2]
[377289000,1754320265742,-460.0,0.00036986,2]
[377289001,1754320265751,-1441.46,0.00036986,2]
[377289002,1754320265761,-460.0,0.00036986,2]
[377289003,1754320265771,-556.6,0.00036986,2]
[377289004,1754320265780,-959.24,0.00036986,2]
[377289005,1754320265790,-839.25,0.00036986,2]
[377289006,1754320265800,-460.0,0.00036986,2]
[377289007,1754320265810,-2110.54,0.00036986,2]
[377289008,1754320265820,-866.47,0.00036986,2]
[377289009,1754320265830,-460.0,0.00036986,2]
[377289010,1754320265841,-516.67200115,0.00036986,2]
[377289011,1754320265851,-460.0,0.00036986,2]
[377289012,1754320265861,-460.0,0.00036986,2]
[377289013,1754320265871,-460.0,0.00036986,2]
[377289014,1754320265880,-460.0,0.00036986,2]
[377289015,1754320265890,-6299.05,0.00036986,2]
[377289016,1754320265899,-460.0,0.00036986,2]
[377289017,1754320265912,-527.04,0.00036986,2]
[377289018,1754320265922,-460.0,0.00036986,2]
[377289019,1754320265933,-1035.18,0.00036986,2]
[377289020,1754320265942,-767.32,0.00036986,2]
[377289021,1754320265952,-6855.53,0.00036986,2]
[377289022,1754320265962,-760.58,0.00036986,2]
[377289023,1754320265972,-1581.22,0.00036986,2]
[377289024,1754320265981,-460.0,0.00036986,2]
[377289025,1754320265991,-494.35,0.00036986,2]
[377289026,1754320266000,-523.03,0.00036986,2]
[377289027,1754320266009,-460.0,0.00036986,2]
[377289028,1754320266019,-581.46,0.00036986,2]
[377289029,1754320266029,-617.49,0.00036986,2]
[377289030,1754320266038,-780.48,0.00036986,2]
[377289031,1754320266048,-948.56,0.00036986,2]
[377289032,1754320266057,-496.13,0.00036986,2]
[377289033,1754320266067,-3804.14,0.00036986,2]
[377289034,1754320266077,-688.25,0.00036986,2]
[377289035,1754320266087,-460.0,0.00036986,2]
[377289036,1754320266096,-849.14,0.00036986,2]
[377289037,1754320266106,-584.82,0.00036986,2]
[377289038,1754320266116,-647.3,0.00036986,2]
[377289039,1754320266126,-583.5,0.00036986,2]
[377289040,1754320266135,-739.03,0.00036986,2]
[377289041,1754320266145,-619.22,0.00036986,2]
[377289042,1754320266156,-3267.42,0.00036986,2]
[377289043,1754320266166,-553.6,0.00036986,2]
[377289044,1754320266175,-537.06,0.00036986,2]
[377289045,1754320266186,-977.49,0.00036986,2]
[377289046,1754320266196,-460.0,0.00036986,2]
[377289047,1754320266206,-2718.21,0.00036986,2]
[377289048,1754320266216,-460.0,0.00036986,2]
[377289049,1754320266232,-557.34,0.00036986,2]
[377289050,1754320266241,-460.0,0.00036986,2]
[377289051,1754320266251,-1268.05,0.00036986,2]
[377289052,1754320266260,-460.0,0.00036986,2]
[377289053,1754320266271,-816.99,0.00036986,2]
[377289054,1754320266281,-460.0,0.00036986,2]
[377289055,1754320266291,-460.0,0.00036986,2]
[377289056,1754320266303,-644.51,0.00036986,2]
[377289057,1754320266313,-621.34,0.00036986,2]
[377289058,1754320266323,-510.34,0.00036986,2]
[377289059,1754320266333,-480.57,0.00036986,2]
[377289060,1754320266342,-2931.08,0.00036986,2]
[377289061,1754320266352,-757.98,0.00036986,2]
[377289062,1754320266361,-2931.08,0.00036986,2]
[377289063,1754320266371,-4476.64,0.00036986,120]
[377289064,1754320266382,-460.0,0.00036986,2]
[377289065,1754320266391,-191.70845721,0.00036986,2]
[377289066,1754320266401,-460.0,0.00036986,2]
[377289067,1754320266412,-858.24,0.00036986,2]
[377289068,1754320266535,-2661.3,0.00036986,2]
[377289069,1754320266557,-393.123432,0.00036986,2]
[377289070,1754320266567,-484.17,0.00036986,2]
[377289071,1754320266576,-460.0,0.00036986,2]
[377289072,1754320266586,-5634.25,0.00036986,2]
[377289073,1754320266595,-1218.26,0.00036986,2]
[377289074,1754320266605,-984.94,0.00036986,2]
[377289075,1754320266614,-1569.94,0.00036986,2]
[377289076,1754320266623,-1002.56,0.00036986,2]
[377289077,1754320266632,-6220.6,0.00036986,2]
[377289078,1754320266642,-160.74677935,0.00036986,30]
[377289079,1754320266651,-442.25,0.00036997,60]
[377289080,1754320266664,-2244.32,0.00037,7]
[377289081,1754320266673,-151.0,0.00037,120]
[377289082,1754320266683,-167.0,0.00037,120]
[377289083,1754320266693,-251.49656294,0.00037008,5]
[377289084,1754320266702,-500.0,0.00037079,7]
[377289085,1754320266712,-1160.0,0.00037079,2]
[377289086,1754320266722,-442.25,0.00037097,60]
[377289087,1754320266731,-1473.03260427,0.00037112,2]
[377289088,1754320266741,-442.25,0.00037197,60]
[377289089,1754320266750,-225.0,0.0003723,120]
[377289090,1754320266760,-200.0,0.00037233,120]
[377289091,1754320266769,-186.496639,0.0003726,14]
[377289092,1754320266778,-186.496637,0.0003726,14]
[377289093,1754320266788,-184.190767,0.0003726,14]
[377289094,1754320266798,-184.190771,0.0003726,14]
[377289095,1754320266807,-460.0,0.0003726,2]
[377289096,1754320266817,-700.92,0.0003726,2]
[377289097,1754320266826,-2764.52,0.0003726,2]
[377289098,1754320266835,-151.0,0.0003726,14]
[377289099,1754320266845,-686.95,0.0003726,2]
[377289100,1754320266854,-523.56,0.0003726,2]
[377289101,1754320266864,-460.0,0.0003726,2]
[377289102,1754320266873,-460.0,0.0003726,2]
[377289103,1754320266882,-460.0,0.0003726,2]
[377289104,1754320266891,-460.0,0.0003726,2]
[377289105,1754320266900,-586.38,0.0003726,2]
[377289106,1754320266912,-670.38,0.0003726,2]
[377289107,1754320266921,-483.92,0.0003726,2]
[377289108,1754320266930,-460.0,0.0003726,2]
[377289109,1754320266940,-1441.46,0.0003726,2]
[377289110,1754320266949,-460.0,0.0003726,2]
[377289111,1754320266959,-556.6,0.0003726,2]
[377289112,1754320266969,-839.25,0.0003726,2]
[377289113,1754320266978,-959.24,0.0003726,2]
[377289114,1754320266987,-460.0,0.0003726,2]
[377289115,1754320266997,-866.47,0.0003726,2]
[377289116,1754320267006,-2110.54,0.0003726,2]
[377289117,1754320267016,-460.0,0.0003726,2]
[377289118,1754320267025,-151.0,0.0003726,14]
[377289119,1754320267035,-460.0,0.0003726,2]
[377289120,1754320267044,-219.532466,0.0003726,14]
[377289121,1754320267054,-219.532466,0.0003726,14]
[377289122,1754320267064,-460.0,0.0003726,2]
[377289123,1754320267073,-253.29587151,0.0003726,2]
[377289124,1754320267083,-460.0,0.0003726,2]
[377289125,1754320267093,-6299.05,0.0003726,2]
[377289126,1754320267102,-168.74999803,0.0003726,2]
[377289127,1754320267112,-527.04,0.0003726,2]
[377289128,1754320267121,-460.0,0.0003726,2]
[377289129,1754320267131,-1035.18,0.0003726,2]
[377289130,1754320267141,-767.32,0.0003726,2]
[377289131,1754320267150,-6855.53,0.0003726,2]
[377289132,1754320267162,-760.58,0.0003726,2]
[377289133,1754320267172,-1581.22,0.0003726,2]
[377289134,1754320267182,-460.0,0.0003726,2]
[377289135,1754320267191,-523.03,0.0003726,2]
[377289136,1754320267201,-494.35,0.0003726,2]
[377289137,1754320267211,-460.0,0.0003726,2]
[377289138,1754320267222,-581.46,0.0003726,2]
[377289139,1754320267232,-617.49,0.0003726,2]
[377289140,1754320267242,-780.48,0.0003726,2]
[377289141,1754320267251,-948.56,0.0003726,2]
[377289142,1754320267264,-496.13,0.0003726,2]
[377289143,1754320267273,-3804.14,0.0003726,2]
[377289144,1754320267283,-688.25,0.0003726,2]
[377289145,1754320267293,-460.0,0.0003726,2]
[377289146,1754320267303,-849.14,0.0003726,2]
[377289147,1754320267313,-584.82,0.0003726,2]
[377289148,1754320267322,-647.3,0.0003726,2]
[377289149,1754320267332,-583.5,0.0003726,2]
[377289150,1754320267341,-739.03,0.0003726,2]
[377289151,1754320267350,-619.22,0.0003726,2]
[377289152,1754320267359,-3267.42,0.0003726,2]
[377289153,1754320267368,-553.6,0.0003726,2]
[377289154,1754320267377,-537.06,0.0003726,2]
[377289155,1754320267387,-977.49,0.0003726,2]
[377289156,1754320267397,-460.0,0.0003726,2]
[377289157,1754320267406,-2718.21,0.0003726,2]
[377289158,1754320267415,-460.0,0.0003726,2]
[377289159,1754320267425,-557.34,0.0003726,2]
[377289160,1754320267434,-460.0,0.0003726,2]
[377289161,1754320267444,-1268.05,0.0003726,2]
[377289162,1754320267454,-460.0,0.0003726,2]
[377289163,1754320267463,-816.99,0.0003726,2]
[377289164,1754320267473,-460.0,0.0003726,2]
[377289165,1754320267482,-460.0,0.0003726,2]
[377289166,1754320267492,-644.51,0.0003726,2]
[377289167,1754320267501,-621.34,0.0003726,2]
[377289168,1754320267510,-510.34,0.0003726,2]
[377289169,1754320267519,-480.57,0.0003726,2]
[377289170,1754320267529,-2931.08,0.0003726,2]
[377289171,1754320267538,-757.98,0.0003726,2]
[377289172,1754320267547,-460.0,0.0003726,2]
[377289173,1754320267556,-529.486865,0.0003726,2]
[377289174,1754320267566,-858.24,0.0003726,2]
[377289175,1754320267575,-2661.3,0.0003726,2]
[377289176,1754320267584,-484.17,0.0003726,2]
[377289177,1754320267593,-460.0,0.0003726,2]
[377289178,1754320267603,-5634.25,0.0003726,2]
[377289179,1754320267612,-1218.26,0.0003726,2]
[377289180,1754320267622,-1569.94,0.0003726,2]
[377289181,1754320267631,-1002.56,0.0003726,2]
[377289182,1754320267641,-6220.6,0.0003726,2]
[377289183,1754320267651,-200.0,0.00037283,120]
[377289184,1754320267661,-442.25,0.00037297,60]
[377289185,1754320267671,-224.99,0.000373,2]
[377289186,1754320267680,-500.0,0.00037341,7]
[377289187,1754320267690,-200.0,0.00037365,120]
[377289188,1754320267700,-1300.0,0.00037445,7]
[377289189,1754320267709,-160.74677935,0.00037479,30]
[377289190,1754320267718,-178.6345348,0.00037479,30]
[377289191,1754320267727,-178.6345348,0.00037479,30]
[377289192,1754320267737,-178.6345348,0.00037479,30]
[377289193,1754320267746,-357.2690696,0.00037479,30]
[377289194,1754320267755,-357.2690696,0.00037479,30]
[377289195,1754320267765,-178.6345348,0.00037479,30]
[377289196,1754320267774,-178.6345348,0.00037479,30]
[377289197,1754320267783,-178.6345348,0.00037479,30]
[377289198,1754320267792,-178.6345348,0.00037479,30]
[377289199,1754320267801,-178.6345348,0.00037479,30]
[377289200,1754320267811,-178.6345348,0.00037479,30]
[377289201,1754320267821,-178.6345348,0.00037479,30]
[377289202,1754320267830,-178.6345348,0.00037479,30]
[377289203,1754320267839,-178.6345348,0.00037479,30]
[377289204,1754320267848,-292.8695803,0.00037479,30]
[377289205,1754320267857,-150.0,0.000375,112]
[377289206,1754320267870,-206.0,0.000375,30]
[377289207,1754320267880,-500.0,0.00037514,7]
[377289208,1754320267889,-151.0,0.00037534,14]
[377289209,1754320267898,-266.387663,0.00037534,14]
[377289210,1754320267908,-259.809258,0.00037534,14]
[377289211,1754320267918,-259.809258,0.00037534,14]
[377289212,1754320267928,-151.0,0.00037534,14]
[377289213,1754320267938,-460.0,0.00037534,2]
[377289214,1754320267947,-700.92,0.00037534,2]
[377289215,1754320267957,-2764.52,0.00037534,2]
[377289216,1754320267966,-686.95,0.00037534,2]
[377289217,1754320267976,-523.56,0.00037534,2]
[377289218,1754320267987,-460.0,0.00037534,2]
[377289219,1754320267996,-460.0,0.00037534,2]
[377289220,1754320268006,-460.0,0.00037534,2]
[377289221,1754320268016,-460.0,0.00037534,2]
[377289222,1754320268025,-586.38,0.00037534,2]
[377289223,1754320268035,-670.38,0.00037534,2]
[377289224,1754320268044,-483.92,0.00037534,2]
[377289225,1754320268054,-460.0,0.00037534,2]
[377289226,1754320268063,-1441.46,0.00037534,2]
[377289227,1754320268072,-460.0,0.00037534,2]
[377289228,1754320268082,-151.0,0.00037534,14]
[377289229,1754320268091,-556.6,0.00037534,2]
[377289230,1754320268100,-839.25,0.00037534,2]
[377289231,1754320268110,-268.31080334,0.00037534,2]
[377289232,1754320268119,-959.24,0.00037534,2]
[377289233,1754320268128,-866.47,0.00037534,2]
[377289234,1754320268137,-2110.54,0.00037534,2]
[377289235,1754320268147,-460.0,0.00037534,2]
[377289236,1754320268159,-523.55183117,0.00037534,2]
[377289237,1754320268168,-460.0,0.00037534,2]
[377289238,1754320268178,-460.0,0.00037534,2]
[377289239,1754320268187,-6299.05,0.00037534,2]
[377289240,1754320268196,-527.04,0.00037534,2]
[377289241,1754320268206,-460.0,0.00037534,2]
[377289242,1754320268215,-1035.18,0.00037534,2]
[377289243,1754320268227,-767.32,0.00037534,2]
[377289244,1754320268237,-6855.53,0.00037534,2]
[377289245,1754320268247,-760.58,0.00037534,2]
[377289246,1754320268256,-1581.22,0.00037534,2]
[377289247,1754320268266,-460.0,0.00037534,2]
[377289248,1754320268276,-523.03,0.00037534,2]
[377289249,1754320268285,-494.35,0.00037534,2]
[377289250,1754320268294,-460.0,0.00037534,2]
[377289251,1754320268306,-581.46,0.00037534,2]
[377289252,1754320268317,-617.49,0.00037534,2]
[377289253,1754320268332,-780.48,0.00037534,2]
[377289254,1754320268341,-948.56,0.00037534,2]
[377289255,1754320268351,-496.13,0.00037534,2]
[377289256,1754320268364,-3804.14,0.00037534,2]
[377289257,1754320268374,-688.25,0.00037534,2]
[377289258,1754320268383,-460.0,0.00037534,2]
[377289259,1754320268393,-849.14,0.00037534,2]
[377289260,1754320268402,-584.82,0.00037534,2]
[377289261,1754320268412,-647.3,0.00037534,2]
[377289262,1754320268421,-583.5,0.00037534,2]
[377289263,1754320268430,-739.03,0.00037534,2]
[377289264,1754320268440,-619.22,0.00037534,2]
[377289265,1754320268450,-3267.42,0.00037534,2]
[377289266,1754320268460,-553.6,0.00037534,2]
[377289267,1754320268470,-537.06,0.00037534,2]
[377289268,1754320268481,-977.49,0.00037534,2]
[377289269,1754320268492,-460.0,0.00037534,2]
[377289270,1754320268502,-2718.21,0.00037534,2]
[377289271,1754320268511,-460.0,0.00037534,2]
[377289272,1754320268520,-557.34,0.00037534,2]
[377289273,1754320268530,-460.0,0.00037534,2]
[377289274,1754320268539,-1268.05,0.00037534,2]
[377289275,1754320268549,-193.34368984,0.00037534,2]
[377289276,1754320268558,-816.99,0.00037534,2]
[377289277,1754320268567,-460.0,0.00037534,2]
[377289278,1754320268577,-460.0,0.00037534,2]
[377289279,1754320268586,-644.51,0.00037534,2]
[377289280,1754320268595,-621.34,0.00037534,2]
[377289281,1754320268604,-510.34,0.00037534,2]
[377289282,1754320268614,-480.57,0.00037534,2]
[377289283,1754320268623,-2931.08,0.00037534,2]
[377289284,1754320268632,-757.98,0.00037534,2]
[377289285,1754320268641,-159.09108361,0.00037534,2]
[377289286,1754320268650,-858.24,0.00037534,2]
[377289287,1754320268661,-2661.3,0.00037534,2]
[377289288,1754320268670,-484.17,0.00037534,2]
[377289289,1754320268679,-460.0,0.00037534,2]
[377289290,1754320268689,-5634.25,0.00037534,2]
[377289291,1754320268698,-1218.26,0.00037534,2]
[377289292,1754320268708,-1569.94,0.00037534,2]
[377289293,1754320268718,-1002.56,0.00037534,2]
[377289294,1754320268727,-6220.6,0.00037534,2]
[377289295,1754320268736,-200.0,0.00037561,120]
[377289296,1754320268745,-1260.0,0.00037627,2]
[377289297,1754320268755,-150.0,0.00037639,2]
[377289298,1754320268764,-200.0,0.0003768,120]
[377289299,1754320268773,-173.17537399,0.00037693,2]
[377289300,1754320268782,-150.0,0.00037694,2]
[377289301,1754320268790,-150.0,0.00037694,2]
[377289302,1754320268799,-150.0,0.00037694,2]
[377289303,1754320268809,-150.0,0.00037694,2]
[377289304,1754320268819,-200.0,0.00037756,120]
[377289305,1754320268829,-500.0,0.00037789,7]
[377289306,1754320268838,-650.74,0.000378,7]
[377289307,1754320268848,-460.0,0.00037808,2]
[377289308,1754320268857,-700.92,0.00037808,2]
[377289309,1754320268866,-2764.52,0.00037808,2]
[377289310,1754320268876,-686.95,0.00037808,2]
[377289311,1754320268885,-523.56,0.00037808,2]
[377289312,1754320268896,-460.0,0.00037808,2]
[377289313,1754320268906,-460.0,0.00037808,2]
[377289314,1754320268917,-601.61122777,0.00037808,2]
[377289315,1754320268927,-507.90750352,0.00037808,2]
[377289316,1754320268937,-586.38,0.00037808,2]
[377289317,1754320268947,-670.38,0.00037808,2]
[377289318,1754320268957,-483.92,0.00037808,2]
[377289319,1754320268966,-460.0,0.00037808,2]
[377289320,1754320268977,-1441.46,0.00037808,2]
[377289321,1754320268986,-460.0,0.00037808,2]
[377289322,1754320268996,-556.6,0.00037808,2]
[377289323,1754320269006,-839.25,0.00037808,2]
[377289324,1754320269015,-959.24,0.00037808,2]
[377289325,1754320269024,-866.47,0.00037808,2]
[377289326,1754320269034,-2110.54,0.00037808,2]
[377289327,1754320269043,-460.0,0.00037808,2]
[377289328,1754320269052,-219.532466,0.00037808,14]
[377289329,1754320269062,-219.532466,0.00037808,14]
[377289330,1754320269071,-404.07060803,0.00037808,2]
[377289331,1754320269080,-460.0,0.00037808,2]
[377289332,1754320269089,-6299.05,0.00037808,2]
[377289333,1754320269199,-527.04,0.00037808,2]
[377289334,1754320269209,-460.0,0.00037808,2]
[377289335,1754320269220,-1035.18,0.00037808,2]
[377289336,1754320269236,-767.32,0.00037808,2]
[377289337,1754320269246,-6855.53,0.00037808,2]
[377289338,1754320269255,-760.58,0.00037808,2]
[377289339,1754320269265,-460.0,0.00037808,2]
[377289340,1754320269275,-1581.22,0.00037808,2]
[377289341,1754320269291,-523.03,0.00037808,2]
[377289342,1754320269301,-494.35,0.00037808,2]
[377289343,1754320269312,-512.31718507,0.00037808,2]
[377289344,1754320269321,-581.46,0.00037808,2]
[377289345,1754320269331,-617.49,0.00037808,2]
[377289346,1754320269341,-780.48,0.00037808,2]
[377289347,1754320269351,-948.56,0.00037808,2]
[377289348,1754320269360,-496.13,0.00037808,2]
[377289349,1754320269370,-3804.14,0.00037808,2]
[377289350,1754320269379,-688.25,0.00037808,2]
[377289351,1754320269389,-460.0,0.00037808,2]
[377289352,1754320269398,-849.14,0.00037808,2]
[377289353,1754320269407,-584.82,0.00037808,2]
[377289354,1754320269421,-647.3,0.00037808,2]
[377289355,1754320269430,-583.5,0.00037808,2]
[377289356,1754320269439,-739.03,0.00037808,2]
[377289357,1754320269448,-619.22,0.00037808,2]
[377289358,1754320269458,-3267.42,0.00037808,2]
[377289359,1754320269468,-553.6,0.00037808,2]
[377289360,1754320269477,-537.06,0.00037808,2]
[377289361,1754320269487,-977.49,0.00037808,2]
[377289362,1754320269497,-183.96333953,0.00037808,2]
[377289363,1754320269506,-2718.21,0.00037808,2]
[377289364,1754320269515,-460.0,0.00037808,2]
[377289365,1754320269525,-557.34,0.00037808,2]
[377289366,1754320269534,-165.61625057,0.00037808,2]
[377289367,1754320269544,-1268.05,0.00037808,2]
[377289368,1754320269553,-816.99,0.00037808,2]
[377289369,1754320269562,-460.0,0.00037808,2]
[377289370,1754320269571,-460.0,0.00037808,2]
[377289371,1754320269580,-644.51,0.00037808,2]
[377289372,1754320269589,-621.34,0.00037808,2]
[377289373,1754320269598,-510.34,0.00037808,2]
[377289374,1754320269608,-480.57,0.00037808,2]
[377289375,1754320269617,-2931.08,0.00037808,2]
[377289376,1754320269626,-757.98,0.00037808,2]
[377289377,1754320269635,-858.24,0.00037808,2]
[377289378,1754320269645,-2661.3,0.00037808,2]
[377289379,1754320269654,-484.17,0.00037808,2]
[377289380,1754320269667,-406.55030334,0.00037808,2]
[377289381,1754320269676,-5634.25,0.00037808,2]
[377289382,1754320269686,-1218.26,0.00037808,2]
[377289383,1754320269695,-1569.94,0.00037808,2]
[377289384,1754320269704,-1002.56,0.00037808,2]
[377289385,1754320269714,-6220.6,0.00037808,2]
[377289386,1754320269724,-178.6345348,0.00037808,30]
[377289387,1754320269733,-178.6345348,0.00037808,30]
[377289388,1754320269743,-354.4825151,0.00037808,30]
[377289389,1754320269752,-471.4652097,0.00037808,30]
[377289390,1754320269761,-292.8695803,0.00037808,30]
[377289391,1754320269770,-292.8695803,0.00037808,30]
[377289392,1754320269780,-292.8695803,0.00037808,30]
[377289393,1754320269789,-292.8695803,0.00037808,30]
[377289394,1754320269798,-292.8695803,0.00037808,30]
[377289395,1754320269808,-292.8695803,0.00037808,30]
[377289396,1754320269817,-292.8695803,0.00037808,30]
[377289397,1754320269826,-292.8695803,0.00037808,30]
[377289398,1754320269835,-292.8695803,0.00037808,30]
[377289399,1754320269844,-292.8695803,0.00037808,30]
[377289400,1754320269854,-292.8695803,0.00037808,30]
[377289401,1754320269863,-292.8695803,0.00037808,30]
[377289402,1754320269873,-292.8695803,0.00037808,30]
[377289403,1754320269882,-292.8695803,0.00037808,30]
[377289404,1754320269891,-292.8695803,0.00037808,30]
[377289405,1754320269901,-292.8695803,0.00037808,30]
[377289406,1754320269912,-397.2554834,0.00037808,30]
[377289407,1754320269921,-200.0,0.00037856,120]
[377289408,1754320269930,-37083.47,0.000379,14]
[377289409,1754320269940,-609.81577042,0.00037948,2]
[377289410,1754320269949,-160.74677935,0.00037973,30]
[377289411,1754320269958,-500.0,0.00037993,5]
[377289412,1754320269968,-10091.0,0.00038,120]
[377289413,1754320269977,-136849.34338214,0.00038,2]
[377289414,1754320269987,-400.0,0.00038,120]
[377289415,1754320269996,-30000.0,0.00038,30]
[377289416,1754320270006,-151.0,0.00038,14]
[377289417,1754320270017,-259.809258,0.00038,14]
[377289418,1754320270035,-259.809258,0.00038,14]
[377289419,1754320270045,-151.0,0.00038,14]
[377289420,1754320270054,-1500.0,0.00038,28]
[377289421,1754320270064,-1500.0,0.00038,28]
[377289422,1754320270073,-1404.404475,0.00038,28]
[377289423,1754320270083,-151.0,0.00038,14]
[377289424,1754320270093,-179.0,0.00038,30]
[377289425,1754320270102,-460.0,0.00038082,2]
[377289426,1754320270112,-700.92,0.00038082,2]
[377289427,1754320270121,-2764.52,0.00038082,2]
[377289428,1754320270131,-686.95,0.00038082,2]
[377289429,1754320270140,-523.56,0.00038082,2]